bitfinex/quotes_BTCUSD_20241107
["timestamp","ask_amount","ask_price","bid_price","bid_amount"]
[1730952723683,0.04556654,74918.0,74914.0,0.0026694]
[1730952723839,0.04556654,74918.0,74915.0,0.02679213]
[1730952726467,0.001666,74919.0,74915.0,0.02679213]
[1730952726663,0.001666,74919.0,74916.0,0.15524102]
[1730952730050,0.001666,74919.0,74918.0,0.023]
[1730952730216,0.001666,74919.0,74918.0,0.15524102]
[1730952730416,0.001666,74919.0,74918.0,0.18699606]
[1730952736103,0.001666,74919.0,74918.0,0.18966516]
[1730952736584,0.001666,74919.0,74918.0,0.18699606]
[1730952739853,0.001666,74919.0,74918.0,0.18966517]
[1730952740471,0.001666,74919.0,74918.0,0.18699606]
[1730952744528,0.080366,74919.0,74918.0,0.18699606]
[1730952752735,0.080366,74919.0,74918.0,0.18782806]
[1730952753176,0.080366,74919.0,74918.0,0.28782806]
[1730952754838,0.080366,74919.0,74918.0,0.38769826]
[1730952755044,0.080366,74919.0,74918.0,0.28782806]
[1730952755220,0.080366,74919.0,74918.0,0.38769818]
[1730952755425,0.080366,74919.0,74918.0,0.28782806]
[1730952755987,0.46335141,74919.0,74918.0,0.28782806]
[1730952758169,0.51115141,74919.0,74918.0,0.28782806]
[1730952760731,0.38465141,74919.0,74918.0,0.28782806]
[1730952764442,0.38465141,74919.0,74918.0,0.25607302]
[1730952764857,0.46685141,74919.0,74918.0,0.25607302]
[1730952765040,0.46885141,74919.0,74918.0,0.25607302]
[1730952765274,0.51355141,74919.0,74918.0,0.25607302]
[1730952765466,0.51355141,74919.0,74918.0,0.000832]
[1730952765801,0.51555141,74919.0,74918.0,0.000832]
[1730952765989,0.53055141,74919.0,74918.0,0.000832]
[1730952768399,0.52555141,74919.0,74918.0,0.000832]
[1730952768554,0.51855141,74919.0,74918.0,0.000832]
[1730952769462,0.51355141,74919.0,74918.0,0.1712549]
[1730952770055,0.51355141,74919.0,74918.0,0.1942549]
[1730952771786,0.46685141,74919.0,74918.0,0.1942549]
[1730952772533,0.46685141,74919.0,74918.0,0.19082899]
[1730952772945,0.46685141,74919.0,74918.0,0.21382899]
[1730952773148,0.38465141,74919.0,74918.0,0.21382899]
[1730952773403,0.38465141,74919.0,74918.0,0.31372517]
[1730952773606,0.38465141,74919.0,74918.0,0.21382899]
[1730952773880,0.38465141,74919.0,74918.0,0.31372517]
[1730952775760,0.38465141,74919.0,74918.0,0.21382899]
[1730952778517,0.38465141,74919.0,74918.0,0.17564711]
[1730952788489,0.38665141,74919.0,74918.0,0.17564711]
[1730952789236,0.38465141,74919.0,74918.0,0.17564711]
[1730952790037,0.46805141,74919.0,74918.0,0.000832]
[1730952790269,0.51395141,74919.0,74918.0,0.000832]
[1730952790806,0.51195141,74919.0,74918.0,0.000832]
[1730952791125,0.51195141,74919.0,74918.0,0.03287331]
[1730952791776,0.51195141,74919.0,74918.0,0.000832]
[1730952792031,0.51395141,74919.0,74918.0,0.000832]
[1730952795300,0.51895141,74919.0,74918.0,0.000832]
[1730952798353,0.52895141,74919.0,74918.0,0.000832]
[1730952798559,2.02895141,74919.0,74918.0,0.000832]
[1730952801611,0.52895141,74919.0,74918.0,0.000832]
[1730952802229,2.02895141,74919.0,74918.0,0.000832]
[1730952805152,0.52895141,74919.0,74918.0,0.000832]
[1730952805696,2.02895141,74919.0,74918.0,0.000832]
[1730952808800,0.52895141,74919.0,74918.0,0.000832]
[1730952809234,2.02895141,74919.0,74918.0,0.000832]
[1730952812150,0.52895141,74919.0,74918.0,0.000832]
[1730952812549,2.02895141,74919.0,74918.0,0.000832]
[1730952819556,2.37678492,74919.0,74918.0,0.000832]
[1730952819880,2.32809554,74919.0,74918.0,0.000832]
[1730952820074,2.19585277,74919.0,74918.0,0.000832]
[1730952823087,2.1958452,74919.0,74918.0,0.000832]
[1730952825088,2.27419492,74919.0,74918.0,0.000832]
[1730952826186,2.29390725,74919.0,74918.0,0.000832]
[1730952826641,2.24954215,74919.0,74918.0,0.000832]
[1730952826868,2.29388875,74919.0,74918.0,0.000832]
[1730952827285,2.29888875,74919.0,74918.0,0.000832]
[1730952829868,2.30088875,74919.0,74918.0,0.000832]
[1730952830154,2.29888875,74919.0,74918.0,0.000832]
[1730952830356,2.29887946,74919.0,74918.0,0.000832]
[1730952832248,2.43112223,74919.0,74918.0,0.000832]
[1730952832631,2.29887946,74919.0,74918.0,0.000832]
[1730952834118,0.41219944,74913.0,74912.0,0.3]
[1730952834316,0.80261763,74913.0,74912.0,0.3]
[1730952834533,0.80061763,74913.0,74912.0,0.3]
[1730952834714,0.72426791,74913.0,74912.0,0.3]
[1730952834848,2.22426791,74913.0,74912.0,0.3]
[1730952835263,2.31656089,74913.0,74912.0,0.3]
[1730952835476,2.31656089,74913.0,74912.0,0.2219]
[1730952836198,2.23821117,74913.0,74912.0,0.2219]
[1730952836396,2.28123868,74913.0,74912.0,0.2219]
[1730952836601,2.23619895,74913.0,74912.0,0.2219]
[1730952836954,2.23819895,74913.0,74912.0,0.2219]
[1730952837399,2.23619895,74913.0,74912.0,0.2219]
[1730952838454,2.25563516,74913.0,74912.0,0.2219]
[1730952838641,2.12214716,74913.0,74912.0,0.2219]
[1730952838873,2.22362604,74913.0,74912.0,0.2219]
[1730952839097,2.23593429,74913.0,74912.0,0.2219]
[1730952839324,2.29569098,74913.0,74912.0,0.2219]
[1730952839524,2.31538122,74913.0,74912.0,0.2219]
[1730952840404,2.25762453,74913.0,74912.0,0.2219]
[1730952842543,0.032,74908.0,74907.0,0.000833]
[1730952842766,0.6319141,74908.0,74907.0,0.000833]
[1730952843319,2.1319141,74908.0,74907.0,0.000833]
[1730952843524,2.11959599,74908.0,74907.0,0.000833]
[1730952843734,1.99840205,74908.0,74907.0,0.000833]
[1730952843937,2.01808707,74908.0,74907.0,0.000833]
[1730952844527,2.02301694,74908.0,74907.0,0.000833]
[1730952844653,2.01309433,74908.0,74907.0,0.000833]
[1730952844851,1.91505412,74908.0,74907.0,0.000833]
[1730952845081,1.99340384,74908.0,74907.0,0.000833]
[1730952845288,1.98840384,74908.0,74907.0,0.000833]
[1730952845483,1.79369729,74908.0,74907.0,0.000833]
[1730952845696,1.89369729,74908.0,74907.0,0.000833]
[1730952847006,2.02594006,74908.0,74907.0,0.000833]
[1730952847381,2.03825533,74908.0,74907.0,0.000833]
[1730952847576,2.03826467,74908.0,74907.0,0.000833]
[1730952847770,1.89370663,74908.0,74907.0,0.000833]
[1730952847973,1.90602252,74908.0,74907.0,0.000833]
[1730952850244,1.90602252,74908.0,74907.0,0.000833]
[1730952850452,1.9257454,74908.0,74907.0,0.000833]
[1730952850648,1.90602252,74908.0,74907.0,0.000833]
[1730952851476,1.92574695,74908.0,74907.0,0.000833]
[1730952851630,2.00130201,74908.0,74907.0,0.000833]
[1730952852866,1.92574695,74908.0,74907.0,0.000833]
[1730952854055,2.00674695,74908.0,74907.0,0.000833]
[1730952854261,1.97472389,74908.0,74907.0,0.000833]
[1730952854496,2.00679009,74908.0,74907.0,0.000833]
[1730952855304,2.01679009,74908.0,74907.0,0.000833]
[1730952855584,2.03652862,74908.0,74907.0,0.000833]
[1730952856279,2.1216425,74908.0,74907.0,0.000833]
[1730952857802,2.12165323,74908.0,74907.0,0.000833]
[1730952858203,2.33349995,74908.0,74907.0,0.000833]
[1730952858353,2.12165323,74908.0,74907.0,0.000833]
[1730952858955,2.12999737,74908.0,74907.0,0.000833]
[1730952859138,2.26549437,74908.0,74907.0,0.000833]
[1730952859342,2.21034709,74908.0,74907.0,0.000833]
[1730952859586,2.12165323,74908.0,74907.0,0.000833]
[1730952859960,2.11025757,74908.0,74907.0,0.000833]
[1730952861009,2.12999506,74908.0,74907.0,0.000833]
[1730952861422,2.08958035,74908.0,74907.0,0.000833]
[1730952861629,2.24375811,74908.0,74907.0,0.000833]
[1730952861837,2.26349702,74908.0,74907.0,0.000833]
[1730952864231,2.13000002,74908.0,74907.0,0.000833]
[1730952864394,2.26349702,74908.0,74907.0,0.000833]
[1730952865186,2.26345948,74908.0,74907.0,0.000833]
[1730952865641,2.3438092,74908.0,74907.0,0.000833]
[1730952865792,2.3418092,74908.0,74907.0,0.000833]
[1730952865993,2.3438092,74908.0,74907.0,0.000833]
[1730952866435,2.3418092,74908.0,74907.0,0.000833]
[1730952868145,2.3438092,74908.0,74907.0,0.000833]
[1730952868355,2.3418092,74908.0,74907.0,0.000833]
[1730952868695,2.3438092,74908.0,74907.0,0.000833]
[1730952869472,2.38120402,74908.0,74907.0,0.000833]
[1730952870157,2.38320402,74908.0,74907.0,0.000833]
[1730952870365,2.3418092,74908.0,74907.0,0.000833]
[1730952870571,2.48925165,74908.0,74907.0,0.000833]
[1730952870781,2.5680413,74908.0,74907.0,0.000833]
[1730952870982,2.46952429,74908.0,74907.0,0.000833]
[1730952871181,2.38117722,74908.0,74907.0,0.000833]
[1730952871389,2.28313117,74908.0,74907.0,0.000833]
[1730952872417,2.30973248,74908.0,74907.0,0.000833]
[1730952872622,2.32205446,74908.0,74907.0,0.000833]
[1730952873018,2.16535502,74908.0,74907.0,0.000833]
[1730952873242,2.32205446,74908.0,74907.0,0.000833]
[1730952873588,2.24370474,74908.0,74907.0,0.000833]
[1730952876154,2.2053236,74908.0,74907.0,0.000833]
[1730952876306,2.24568693,74908.0,74907.0,0.000833]
[1730952877471,2.30478231,74908.0,74907.0,0.000833]
[1730952877872,2.38313203,74908.0,74907.0,0.000833]
[1730952878045,2.46949537,74908.0,74907.0,0.000833]
[1730952878457,2.56798243,74908.0,74907.0,0.000833]
[1730952878617,2.51529712,74908.0,74907.0,0.000833]
[1730952881049,2.51538517,74908.0,74907.0,0.000833]
[1730952881922,2.35868573,74908.0,74907.0,0.000833]
[1730952882259,2.51538517,74908.0,74907.0,0.000833]
[1730952883876,2.35192157,74908.0,74907.0,0.000833]
[1730952884236,2.25338425,74908.0,74907.0,0.000833]
[1730952884448,2.33173397,74908.0,74907.0,0.000833]
[1730952884661,2.17503453,74908.0,74907.0,0.000833]
[1730952884840,2.19675769,74908.0,74907.0,0.000833]
[1730952885040,0.017,74891.0,74890.0,0.85480685]
[1730952885266,0.14924102,74891.0,74890.0,0.85480685]
[1730952885738,1.64924102,74891.0,74890.0,0.85480685]
[1730952891666,1.65024102,74891.0,74890.0,0.85480685]
[1730952892301,1.64924102,74891.0,74890.0,0.85480685]
[1730952894133,1.64924102,74891.0,74890.0,0.85563985]
[1730952894348,1.65090702,74891.0,74890.0,0.85563985]
[1730952895476,1.518666,74891.0,74890.0,0.85563985]
[1730952896389,1.59701572,74891.0,74890.0,0.85563985]
[1730952896654,1.72925674,74891.0,74890.0,0.85563985]
[1730952898305,1.85695674,74891.0,74890.0,0.85563985]
[1730952898507,1.77605674,74891.0,74890.0,0.85563985]
[1730952898727,1.72925674,74891.0,74890.0,0.85563985]
[1730952900908,1.65090702,74891.0,74890.0,0.85563985]
[1730952902678,0.13390702,74891.0,74890.0,0.85563985]
[1730952903476,1.63390702,74891.0,74890.0,0.85563985]
[1730952903672,1.501666,74891.0,74890.0,0.85563985]
[1730952910416,1.58001572,74891.0,74890.0,0.85563985]
[1730952913449,1.501666,74891.0,74890.0,0.85563985]
[1730952918306,0.001666,74891.0,74890.0,0.85563985]
[1730952919202,0.08001572,74891.0,74890.0,0.85563985]
[1730952919703,0.12781572,74891.0,74890.0,0.85563985]
[1730952919907,1.62781572,74891.0,74890.0,0.85563985]
[1730952929586,1.501666,74891.0,74890.0,0.85563985]
[1730952932891,0.001666,74891.0,74890.0,0.85563985]
[1730952937782,0.001666,74891.0,74890.0,0.88473985]
[1730952938506,0.001666,74891.0,74890.0,0.85563985]
[1730952939736,0.048766,74891.0,74890.0,0.85563985]
[1730952940265,1.501666,74891.0,74890.0,0.85563985]
[1730952945484,0.001666,74891.0,74890.0,0.85563985]
[1730952947992,1.501666,74891.0,74890.0,0.85563985]
[1730952966197,1.547366,74891.0,74890.0,0.85563985]
[1730952969406,1.626166,74891.0,74890.0,0.85563985]
[1730952975056,1.628166,74891.0,74890.0,0.85563985]
[1730952976009,1.626166,74891.0,74890.0,0.85563985]
[1730952985797,1.63852933,74891.0,74890.0,0.85563985]
[1730952989833,1.55972933,74891.0,74890.0,0.85563985]
[1730952991184,1.547366,74891.0,74890.0,0.85563985]
[1730952991399,1.55972883,74891.0,74890.0,0.85563985]
[1730952991831,1.547366,74891.0,74890.0,0.85563985]
[1730952992036,1.501666,74891.0,74890.0,0.85563985]
[1730952994212,0.001666,74891.0,74890.0,0.85563985]
[1730952996701,0.12821572,74891.0,74890.0,0.85563985]
[1730952997107,0.14057585,74891.0,74890.0,0.85563985]
[1730952997320,1.64057585,74891.0,74890.0,0.85563985]
[1730952997645,1.62821572,74891.0,74890.0,0.85563985]
[1730952997807,1.64057528,74891.0,74890.0,0.85563985]
[1730952999730,1.64057528,74891.0,74890.0,2.85563985]
[1730953001331,1.64058188,74891.0,74890.0,2.85563985]
[1730953004126,1.62821572,74891.0,74890.0,2.85563985]
[1730953011818,1.6405764,74891.0,74890.0,2.85563985]
[1730953012980,1.62821572,74891.0,74890.0,2.85563985]
[1730953016989,1.549866,74891.0,74890.0,2.85563985]
[1730953017206,1.62821572,74891.0,74890.0,2.85563985]
[1730953019540,0.12821572,74891.0,74890.0,2.85563985]
[1730953020217,1.62821572,74891.0,74890.0,2.85563985]
[1730953023039,0.12821572,74891.0,74890.0,2.85563985]
[1730953023250,0.26045674,74891.0,74890.0,2.85563985]
[1730953023472,1.8573188,74891.0,74890.0,2.85563985]
[1730953023734,1.8593188,74891.0,74890.0,2.85563985]
[1730953023943,1.8573188,74891.0,74890.0,2.85563985]
[1730953024761,1.64172806,74891.0,74890.0,2.85563985]
[1730953025020,1.501666,74891.0,74890.0,2.85563985]
[1730953036273,1.58001572,74891.0,74890.0,2.85563985]
[1730953037301,1.501666,74891.0,74890.0,2.85563985]
[1730953037498,1.58001572,74891.0,74890.0,2.85563985]
[1730953041358,1.62631572,74891.0,74890.0,2.85563985]
[1730953041546,1.70391572,74891.0,74890.0,2.85563985]
[1730953041986,1.71628661,74891.0,74890.0,2.85563985]
[1730953042219,1.70391572,74891.0,74890.0,2.85563985]
[1730953043700,1.71828714,74891.0,74890.0,2.85563985]
[1730953043960,1.71628714,74891.0,74890.0,2.85563985]
[1730953045903,1.547966,74891.0,74890.0,2.85563985]
[1730953046825,1.501666,74891.0,74890.0,2.85563985]
[1730953047720,0.001666,74891.0,74890.0,2.85563985]
[1730953049052,0.08001572,74891.0,74890.0,2.85563985]
[1730953051537,0.20561572,74891.0,74890.0,2.85563985]
[1730953051919,1.70561572,74891.0,74890.0,2.85563985]
[1730953053409,1.62541572,74891.0,74890.0,2.85563985]
[1730953053964,1.58001572,74891.0,74890.0,2.85563985]
[1730953062293,1.62521572,74891.0,74890.0,2.85563985]
[1730953076903,1.63760915,74891.0,74890.0,2.85563985]
[1730953078076,1.62521572,74891.0,74890.0,2.85563985]
[1730953081071,1.546866,74891.0,74890.0,2.85563985]
[1730953081272,1.62521572,74891.0,74890.0,2.85563985]
[1730953084503,1.546866,74891.0,74890.0,2.85563985]
[1730953084700,1.62521572,74891.0,74890.0,2.85563985]
[1730953087240,1.63761458,74891.0,74890.0,2.85563985]
[1730953088008,1.62521572,74891.0,74890.0,2.85563985]
[1730953088275,1.63761579,74891.0,74890.0,2.85563985]
[1730953089243,1.65745123,74891.0,74890.0,2.85563985]
[1730953089452,1.63761579,74891.0,74890.0,2.85563985]
[1730953093356,1.62521572,74891.0,74890.0,2.85563985]
[1730953093551,1.63760846,74891.0,74890.0,2.85563985]
[1730953094277,1.55925874,74891.0,74890.0,2.85563985]
[1730953094552,1.63760846,74891.0,74890.0,2.85563985]
[1730953096334,2.19124938,74891.0,74890.0,2.85563985]
[1730953096538,2.34257517,74891.0,74890.0,2.85563985]
[1730953096734,2.38386939,74891.0,74890.0,2.85563985]
[1730953096933,2.35165347,74891.0,74890.0,2.85563985]
[1730953097137,2.26420683,74891.0,74890.0,2.85563985]
[1730953097535,2.34255655,74891.0,74890.0,2.85563985]
[1730953097997,2.34455655,74891.0,74890.0,2.85563985]
[1730953098395,2.42178876,74891.0,74890.0,2.85563985]
[1730953098614,2.34255655,74891.0,74890.0,2.85563985]
[1730953098981,2.34255655,74891.0,74880.0,1.0]
[1730953098982,0.245545,74881.0,74880.0,0.4228723]
[1730953099214,0.405063,74871.0,74870.0,1.0]
[1730953099432,0.405063,74871.0,74860.0,1.0]
[1730953099433,0.2638,74861.0,74860.0,1.0]
[1730953099676,1.7949246,74861.0,74860.0,1.0]
[1730953099871,1.73224102,74861.0,74860.0,1.0]
[1730953100280,1.63224102,74861.0,74860.0,1.0]
[1730953100909,1.65145379,74861.0,74860.0,1.0]
[1730953102467,1.65645379,74861.0,74860.0,1.0]
[1730953104269,1.79003379,74861.0,74860.0,1.0]
[1730953104475,1.83553379,74861.0,74860.0,1.0]
[1730953105400,2.07777656,74861.0,74860.0,1.0]
[1730953105617,1.94553379,74861.0,74860.0,1.0]
[1730953105854,2.02763379,74861.0,74860.0,1.0]
[1730953107007,2.10398351,74861.0,74860.0,1.0]
[1730953107530,0.145598,74851.0,74840.0,1.0]
[1730953107792,0.44335261,74851.0,74840.0,1.0]
[1730953108015,0.54135261,74851.0,74850.0,0.87659411]
[1730953108252,0.54335261,74851.0,74850.0,0.87659411]
[1730953108503,2.18773846,74851.0,74850.0,0.87659411]
[1730953109210,2.18573846,74851.0,74850.0,0.87659411]
[1730953109434,2.18773846,74851.0,74850.0,0.87659411]
[1730953109882,2.00603902,74851.0,74850.0,0.87659411]
[1730953110113,2.10038874,74851.0,74850.0,0.87759411]
[1730953110345,2.10038874,74851.0,74850.0,0.87659411]
[1730953110569,2.09838874,74851.0,74850.0,0.87659411]
[1730953110796,2.140389,74851.0,74850.0,0.87659411]
[1730953111054,2.168389,74851.0,74850.0,0.87759411]
[1730953111256,2.168389,74851.0,74850.0,0.87659411]
[1730953111257,2.142389,74851.0,74850.0,0.87659411]
[1730953111709,2.140389,74851.0,74850.0,0.87659411]
[1730953112171,2.15433342,74851.0,74850.0,0.87659411]
[1730953112393,2.15633342,74851.0,74850.0,0.87659411]
[1730953112607,2.14033342,74851.0,74850.0,0.87659411]
[1730953113298,0.64033342,74851.0,74850.0,0.87659411]
[1730953113941,2.14033342,74851.0,74850.0,0.87659411]
[1730953115054,2.126389,74851.0,74850.0,0.87659411]
[1730953115590,2.04803928,74851.0,74850.0,0.87659411]
[1730953115792,2.128389,74851.0,74850.0,0.87659411]
[1730953116076,0.148616,74841.0,74840.0,1.0]
[1730953116265,0.48220674,74841.0,74840.0,1.0]
[1730953116803,1.98220674,74841.0,74840.0,1.0]
[1730953117015,1.98420674,74841.0,74840.0,1.0]
[1730953117217,1.97920674,74841.0,74840.0,1.0]
[1730953117532,1.98420674,74841.0,74840.0,1.0]
[1730953117898,2.05044031,74841.0,74840.0,1.0]
[1730953118327,1.98420674,74841.0,74840.0,1.0]
[1730953118716,1.98220674,74841.0,74840.0,1.0]
[1730953119480,1.90585702,74841.0,74840.0,1.0]
[1730953120448,1.90385702,74841.0,74840.0,1.0]
[1730953121110,1.92319471,74841.0,74840.0,1.0]
[1730953124176,0.42319471,74841.0,74840.0,1.0]
[1730953124608,1.92319471,74841.0,74840.0,1.000833]
[1730953124823,1.78957871,74841.0,74840.0,1.000833]
[1730953125466,1.92319471,74841.0,74840.0,1.000833]
[1730953126010,1.78957871,74841.0,74840.0,1.000833]
[1730953126444,1.92319471,74841.0,74840.0,1.000833]
[1730953126643,1.76657871,74841.0,74840.0,1.000833]
[1730953128801,1.92182148,74841.0,74840.0,1.000833]
[1730953128951,2.05543748,74841.0,74840.0,1.000833]
[1730953129152,2.18012603,74841.0,74840.0,1.000833]
[1730953129559,2.04788326,74841.0,74840.0,1.000833]
[1730953130000,1.92319471,74841.0,74840.0,1.000833]
[1730953130399,1.92519471,74841.0,74840.0,1.000833]
[1730953131385,1.75657871,74841.0,74840.0,1.000833]
[1730953131591,1.90019471,74841.0,74840.0,1.000833]
[1730953131823,2.03443748,74841.0,74840.0,1.000833]
[1730953132495,2.03243748,74841.0,74840.0,1.000833]
[1730953132882,1.76657871,74841.0,74840.0,1.000833]
[1730953134081,1.92319471,74841.0,74840.0,1.000833]
[1730953140070,1.92519471,74841.0,74840.0,1.000833]
[1730953140288,1.92319471,74841.0,74840.0,1.000833]
[1730953140499,1.78957871,74841.0,74840.0,1.000833]
[1730953144082,1.76657871,74841.0,74840.0,1.000833]
[1730953145015,1.75157871,74841.0,74840.0,1.000833]
[1730953145501,1.75657871,74841.0,74840.0,1.000833]
[1730953146818,1.75157871,74841.0,74840.0,1.000833]
[1730953147954,0.25157871,74841.0,74840.0,1.000833]
[1730953148333,1.75157871,74841.0,74840.0,1.000833]
[1730953163742,1.75657871,74841.0,74840.0,1.000833]
[1730953165767,1.90219471,74841.0,74840.0,1.000833]
[1730953165981,1.92519471,74841.0,74840.0,1.000833]
[1730953166411,1.92319471,74841.0,74840.0,1.000833]
[1730953166615,2.05159471,74841.0,74840.0,1.000833]
[1730953166819,2.04959471,74841.0,74840.0,1.000833]
[1730953169266,2.06940611,74841.0,74840.0,1.000833]
[1730953170187,2.20164888,74841.0,74840.0,1.000833]
[1730953171046,2.20364888,74841.0,74840.0,1.000833]
[1730953171283,2.06940611,74841.0,74840.0,1.000833]
[1730953171494,1.93579011,74841.0,74840.0,1.000833]
[1730953171714,1.85679011,74841.0,74840.0,1.000833]
[1730953171922,1.78957871,74841.0,74840.0,1.000833]
[1730953172127,1.76657871,74841.0,74840.0,1.000833]
[1730953172736,1.89882148,74841.0,74840.0,1.000833]
[1730953172940,1.76657871,74841.0,74840.0,1.000833]
[1730953178478,1.75657871,74841.0,74840.0,1.000833]
[1730953178691,1.76157871,74841.0,74840.0,1.000833]
[1730953178893,1.76657871,74841.0,74840.0,1.000833]
[1730953182555,1.75657871,74841.0,74840.0,1.000833]
[1730953185940,1.61933769,74841.0,74840.0,1.000833]
[1730953186157,0.005,74845.0,74840.0,1.081833]
[1730953186388,0.01897253,74843.0,74840.0,1.081833]
[1730953186589,1.73224102,74844.0,74840.0,1.081833]
[1730953186704,0.30029778,74841.0,74840.0,1.000833]
[1730953186906,0.23224102,74841.0,74840.0,1.000833]
[1730953190224,1.73224102,74841.0,74840.0,1.000833]
[1730953192598,1.74462795,74841.0,74840.0,1.000833]
[1730953193240,1.76411856,74841.0,74840.0,1.000833]
[1730953194025,1.76911856,74841.0,74840.0,1.000833]
[1730953194225,1.98127714,74841.0,74840.0,1.000833]
[1730953194437,1.98127397,74841.0,74840.0,1.000833]
[1730953194647,1.84765797,74841.0,74840.0,1.000833]
[1730953195039,1.76911539,74841.0,74840.0,1.000833]
[1730953196044,1.79211539,74841.0,74840.0,1.000833]
[1730953196687,1.92573139,74841.0,74840.0,1.000833]
[1730953197063,2.00427397,74841.0,74840.0,1.000833]
[1730953197266,2.05097397,74841.0,74840.0,1.000833]
[1730953198589,2.06097397,74841.0,74840.0,1.000833]
[1730953198797,2.10059422,74841.0,74840.0,1.000833]
[1730953199075,2.21303188,74841.0,74840.0,1.000833]
[1730953200027,2.08078911,74841.0,74840.0,1.000833]
[1730953200431,1.84563053,74841.0,74840.0,1.000833]
[1730953200642,1.77911539,74841.0,74840.0,1.000833]
[1730953204111,1.76673163,74841.0,74840.0,1.000833]
[1730953204294,1.77913142,74841.0,74840.0,1.000833]
[1730953204497,1.79153118,74841.0,74840.0,1.000833]
[1730953204672,1.77913139,74841.0,74840.0,1.000833]
[1730953206318,1.79675795,74841.0,74840.0,1.000833]
[1730953206524,1.77913139,74841.0,74840.0,1.000833]
[1730953209765,1.77413139,74841.0,74840.0,1.000833]
[1730953209971,1.77913139,74841.0,74840.0,1.000833]
[1730953211120,1.7791379,74841.0,74840.0,1.000833]
[1730953211322,1.7691379,74841.0,74840.0,1.000833]
[1730953211522,1.7791379,74841.0,74840.0,1.000833]
[1730953212336,1.9127539,74841.0,74840.0,1.000833]
[1730953212564,1.7791379,74841.0,74840.0,1.000833]
[1730953213872,1.7691379,74841.0,74840.0,1.000833]
[1730953214110,1.7791379,74841.0,74840.0,1.000833]
[1730953214928,1.76673163,74841.0,74840.0,1.000833]
[1730953215132,1.77913575,74841.0,74840.0,1.000833]
[1730953215493,1.76913575,74841.0,74840.0,1.000833]
[1730953215873,1.77913575,74841.0,74840.0,1.000833]
[1730953216395,1.76673163,74841.0,74840.0,1.000833]
[1730953216599,1.61240645,74841.0,74840.0,1.125533]
[1730953217095,1.6,74841.0,74840.0,1.125533]
[1730953217316,1.5,74841.0,74840.0,1.20407558]
[1730953217566,0.02146311,74850.0,74841.0,0.0753]
[1730953217804,0.02146311,74850.0,74848.0,0.07854258]
[1730953217805,0.20029778,74849.0,74848.0,0.07854258]
[1730953218056,0.20029778,74849.0,74843.0,0.0494]
[1730953218057,1.70029778,74849.0,74846.0,0.0753]
[1730953218296,1.5,74849.0,74846.0,0.0753]
[1730953219462,0.001666,74850.0,74846.0,0.0753]
[1730953222764,0.20196378,74850.0,74846.0,0.0753]
[1730953222998,0.001666,74850.0,74846.0,0.0753]
[1730953223256,0.13390702,74850.0,74846.0,0.0753]
[1730953223511,1.5,74849.0,74846.0,0.0753]
[1730953224000,1.5,74849.0,74841.0,0.0768]
[1730953224001,1.63224102,74849.0,74841.0,0.0768]
[1730953224219,0.13224102,74848.0,74841.0,0.0768]
[1730953224472,0.13224102,74848.0,74840.0,1.000833]
[1730953224942,1.5,74841.0,74840.0,1.000833]
[1730953225192,1.73224102,74841.0,74840.0,1.000833]
[1730953226467,1.5,74841.0,74840.0,1.080433]
[1730953226812,0.11937783,74852.0,74840.0,1.080433]
[1730953227022,0.1,74848.0,74840.0,1.080433]
[1730953227250,0.1,74848.0,74847.0,0.07854258]
[1730953227452,0.1,74848.0,74843.0,0.07854258]
[1730953227915,1.5,74847.0,74843.0,0.07854258]
[1730953228976,1.5,74847.0,74845.0,0.0484]
[1730953229385,0.01937783,74852.0,74845.0,0.0484]
[1730953229982,1.5,74851.0,74845.0,0.0484]
[1730953231300,1.5,74851.0,74846.0,0.00267186]
[1730953231504,1.5,74851.0,74845.0,0.0484]
[1730953232505,0.005,74866.0,74845.0,0.0484]
[1730953232831,0.01237208,74860.0,74845.0,0.0484]
[1730953233143,0.01237208,74860.0,74846.0,0.0822]
[1730953233762,1.5,74859.0,74846.0,0.0822]
[1730953233967,0.01237208,74858.0,74846.0,0.0822]
[1730953234396,0.00144353,74850.0,74846.0,0.0822]
[1730953234600,0.00144353,74850.0,74847.0,0.02551818]
[1730953234801,0.00144353,74850.0,74848.0,0.0804]
[1730953238919,0.00144353,74850.0,74848.0,0.08307167]
[1730953241675,0.00144353,74850.0,74849.0,0.24916358]
[1730953241889,0.21953544,74872.0,74860.0,0.0802]
[1730953242155,0.20029778,74861.0,74860.0,0.0802]
[1730953242374,1.52474388,74871.0,74860.0,0.0802]
[1730953242375,1.5,74871.0,74860.0,0.0802]
[1730953242597,0.02474673,74870.0,74860.0,0.0802]
[1730953242807,0.01237336,74870.0,74869.0,0.12458179]
[1730953243016,0.01237382,74871.0,74869.0,0.13703997]
[1730953243232,1.5,74870.0,74869.0,0.13703997]
[1730953243444,0.01237382,74870.0,74869.0,0.21723997]
[1730953243704,0.01237382,74879.0,74869.0,0.21723997]
[1730953243914,0.14461484,74878.0,74870.0,0.021724]
[1730953244093,0.02474819,74877.0,74870.0,0.021724]
[1730953244294,0.01237382,74876.0,74870.0,0.021724]
[1730953244519,0.01237437,74877.0,74875.0,0.12458179]
[1730953244648,0.02475161,74885.0,74875.0,0.12458179]
[1730953244849,0.1466,74889.0,74871.0,0.0469]
[1730953244850,0.20029778,74881.0,74880.0,0.12458179]
[1730953245056,1.71267502,74881.0,74880.0,0.12458179]
[1730953245267,1.51237724,74881.0,74880.0,0.12458179]
[1730953245660,1.5,74881.0,74880.0,0.12458179]
[1730953246517,1.5,74881.0,74880.0,0.13703997]
[1730953246720,1.5,74881.0,74880.0,0.20508179]
[1730953247245,1.5,74881.0,74880.0,0.0805]
[1730953248753,0.001666,74891.0,74880.0,0.0805]
[1730953248922,0.20029778,74887.0,74880.0,0.0805]
[1730953249116,1.70029778,74887.0,74886.0,0.12458179]
[1730953249320,1.5,74887.0,74886.0,0.12458179]
[1730953250932,1.5,74887.0,74872.0,0.0805]
[1730953251142,1.5,74887.0,74873.0,0.20029778]
[1730953251355,0.13224102,74886.0,74872.0,0.0805]
[1730953251563,0.20029778,74885.0,74866.0,0.12458179]
[1730953251767,0.1445935,74884.0,74867.0,0.20029778]
[1730953251941,0.1445935,74884.0,74866.0,0.20508179]
[1730953251942,0.01235248,74883.0,74866.0,0.20508179]
[1730953252155,0.13224102,74882.0,74866.0,0.20508179]
[1730953252382,0.20029778,74877.0,74860.0,0.20508179]
[1730953252596,0.1445935,74876.0,74862.0,0.20029778]